bitfinex/quotes_BTCUSD_20241111
["timestamp","ask_amount","ask_price","bid_price","bid_amount"]
[1731325276148,1.62594221,82116.0,82113.0,0.121782]
[1731325276381,1.62594221,82116.0,82115.0,0.12178]
[1731325276558,0.12594221,82116.0,82115.0,0.12178]
[1731325277029,1.62594221,82116.0,82115.0,0.12178]
[1731325279168,1.5,82116.0,82115.0,0.12178]
[1731325279414,1.5,82116.0,82115.0,0.22178]
[1731325279641,0.001688,82117.0,82116.0,0.249778]
[1731325280364,1e-06,82117.0,82116.0,0.25721299]
[1731325280571,1e-06,82117.0,82116.0,0.29038685]
[1731325280798,1e-06,82117.0,82116.0,0.254778]
[1731325281721,1e-06,82117.0,82116.0,0.249778]
[1731325282891,1e-06,82117.0,82116.0,0.121778]
[1731325283110,0.12594321,82117.0,82116.0,0.13204661]
[1731325283553,1.62594321,82117.0,82116.0,0.13204661]
[1731325284622,1.62594321,82117.0,82116.0,0.23204661]
[1731325285110,1.62594321,82117.0,82089.0,0.000844]
[1731325285300,1.62594321,82117.0,82104.0,0.18300829]
[1731325285301,0.2140122,82105.0,82104.0,0.18300829]
[1731325285552,0.17214221,82105.0,82104.0,0.30480429]
[1731325285765,0.17214221,82105.0,82104.0,0.121796]
[1731325285766,1.67214221,82105.0,82104.0,0.121796]
[1731325287591,1.96589662,82105.0,82104.0,0.121796]
[1731325287801,0.123816,82091.0,82090.0,0.000844]
[1731325288003,0.46937041,82091.0,82090.0,0.000844]
[1731325288229,0.46737041,82091.0,82090.0,0.000844]
[1731325288432,1.96737041,82091.0,82090.0,0.000844]
[1731325288796,2.03406434,82091.0,82090.0,0.000844]
[1731325289015,2.11186434,82091.0,82090.0,0.000844]
[1731325289228,2.11386434,82091.0,82090.0,0.000844]
[1731325289434,2.11186434,82091.0,82090.0,0.000844]
[1731325289641,2.11486434,82091.0,82090.0,0.000844]
[1731325290044,2.11986434,82091.0,82090.0,0.000844]
[1731325290252,2.12186434,82091.0,82090.0,0.000844]
[1731325290473,2.06017041,82091.0,82090.0,0.000844]
[1731325290693,0.133817,82090.0,82069.0,0.121847]
[1731325290910,0.25975921,82090.0,82064.0,0.243711]
[1731325291114,0.25975921,82090.0,82068.0,0.243698]
[1731325291315,1.75775921,82090.0,82081.0,0.121829]
[1731325291539,1.75775921,82090.0,82079.0,0.18300829]
[1731325291960,1.76575921,82090.0,82079.0,0.18300829]
[1731325292174,1.76575921,82090.0,82072.0,0.243687]
[1731325292175,1.76575921,82090.0,82076.0,0.121838]
[1731325292601,1.76575921,82090.0,82071.0,0.000844]
[1731325292602,1.88142803,82090.0,82071.0,0.000844]
[1731325293042,2.04924023,82090.0,82071.0,0.000844]
[1731325293498,2.05624023,82090.0,82071.0,0.000844]
[1731325293724,2.04924023,82090.0,82071.0,0.122689]
[1731325293934,1.93357141,82090.0,82073.0,0.121842]
[1731325294159,1.93457141,82090.0,82071.0,0.000844]
[1731325294765,0.255,82073.0,82071.0,0.000844]
[1731325294893,0.49759841,82072.0,82071.0,0.000844]
[1731325295105,0.54429841,82072.0,82071.0,0.000844]
[1731325295316,2.04429841,82072.0,82071.0,0.000844]
[1731325295726,2.04229841,82072.0,82071.0,0.000844]
[1731325297645,1.92045441,82072.0,82071.0,0.000844]
[1731325297854,2.04229841,82072.0,82071.0,0.000844]
[1731325298686,1.92045441,82072.0,82071.0,0.000844]
[1731325299019,2.04229841,82072.0,82071.0,0.000844]
[1731325300117,1.92045441,82072.0,82071.0,0.000844]
[1731325300335,2.04229841,82072.0,82071.0,0.000844]
[1731325300686,1.92045441,82072.0,82071.0,0.000844]
[1731325301348,2.04229841,82072.0,82071.0,0.000844]
[1731325301556,1.92045441,82072.0,82071.0,0.000844]
[1731325301788,2.17445441,82072.0,82071.0,0.000844]
[1731325302839,2.17845441,82072.0,82071.0,0.000844]
[1731325303053,2.17445441,82072.0,82071.0,0.000844]
[1731325303247,2.17045441,82072.0,82071.0,0.000844]
[1731325304489,2.29229841,82072.0,82071.0,0.000844]
[1731325305718,2.17045441,82072.0,82071.0,0.000844]
[1731325306634,2.29229841,82072.0,82071.0,0.000844]
[1731325308230,2.17045441,82072.0,82071.0,0.000844]
[1731325309297,2.29229841,82072.0,82071.0,0.000844]
[1731325309499,2.38692,82072.0,82071.0,0.000844]
[1731325309626,2.17045441,82072.0,82071.0,0.000844]
[1731325315911,1.99764221,82072.0,82071.0,0.000844]
[1731325316133,2.16545441,82072.0,82071.0,0.000844]
[1731325316482,2.17045441,82072.0,82071.0,0.000844]
[1731325316840,1.62594221,82072.0,82071.0,0.122689]
[1731325328977,0.12594221,82072.0,82071.0,0.122689]
[1731325329904,1.62594221,82072.0,82071.0,0.122689]
[1731325331478,1.62594221,82072.0,82071.0,0.000844]
[1731325331937,1.75278621,82072.0,82071.0,0.000844]
[1731325332500,1.63094221,82072.0,82071.0,0.000844]
[1731325332711,1.62594221,82072.0,82071.0,0.122689]
[1731325332916,1.62594221,82072.0,82068.0,0.2437]
[1731325333120,0.12594221,82071.0,82070.0,0.365541]
[1731325333527,0.12594221,82071.0,82070.0,0.121847]
[1731325333528,1.62594221,82071.0,82070.0,0.121847]
[1731325333732,1.62594221,82071.0,82070.0,0.14081249]
[1731325335003,1.63094221,82071.0,82070.0,0.01896549]
[1731325336151,1.75278721,82071.0,82070.0,0.01896549]
[1731325336352,1.63094221,82071.0,82070.0,0.01896549]
[1731325336692,1.63094221,82071.0,82065.0,0.121853]
[1731325336961,0.1678122,82069.0,82062.0,0.243717]
[1731325337122,0.12594221,82068.0,82062.0,0.243717]
[1731325337353,0.12594221,82068.0,82067.0,0.121851]
[1731325337550,1.62594221,82068.0,82067.0,0.121851]
[1731325338131,0.12594221,82068.0,82067.0,0.121851]
[1731325338913,0.12594221,82068.0,82067.0,0.14081785]
[1731325339100,1.62594221,82068.0,82067.0,0.14081785]
[1731325339303,1.5,82068.0,82067.0,0.121851]
[1731325339504,1.5,82068.0,82067.0,0.14081877]
[1731325340423,1.62594221,82068.0,82067.0,0.14081877]
[1731325340622,1.62594221,82068.0,82067.0,0.01896777]
[1731325340823,1.79375441,82068.0,82066.0,0.121852]
[1731325341033,0.12594221,82067.0,82066.0,0.121852]
[1731325341432,0.12594221,82067.0,82040.0,0.05966082]
[1731325341433,1.62594221,82067.0,82061.0,0.243721]
[1731325341646,1.62594221,82067.0,82065.0,0.1]
[1731325341842,0.12594221,82067.0,82066.0,0.121853]
[1731325342173,1.62594221,82067.0,82066.0,0.121853]
[1731325342379,1.62594221,82067.0,82065.0,0.1]
[1731325342624,0.12594221,82067.0,82065.0,0.1]
[1731325342834,0.12594221,82067.0,82056.0,0.243735]
[1731325342835,0.12594221,82067.0,82062.0,0.1]
[1731325343056,0.12594221,82067.0,82056.0,0.243735]
[1731325343057,1.5,82063.0,82059.0,0.121863]
[1731325343331,1.5,82063.0,82059.0,0.243726]
[1731325343332,0.12594221,82062.0,82059.0,0.243726]
[1731325343533,0.12594221,82062.0,82061.0,0.12186]
[1731325343907,1.62594221,82062.0,82061.0,0.12186]
[1731325344496,1.62594221,82062.0,82057.0,0.243732]
[1731325344697,0.12594221,82062.0,82056.0,0.00987515]
[1731325344898,0.12594221,82062.0,82061.0,0.12186]
[1731325345132,1.62594221,82062.0,82061.0,0.12186]
[1731325345989,1.62594221,82062.0,82057.0,0.1]
[1731325346190,0.12594221,82062.0,82057.0,0.1]
[1731325346362,0.1678122,82061.0,82057.0,0.1]
[1731325346567,1.5,82058.0,82057.0,0.1]
[1731325346772,1.62594221,82058.0,82057.0,0.1]
[1731325347228,1.62594221,82058.0,82057.0,0.121866]
[1731325347426,1.62594221,82058.0,82057.0,0.221866]
[1731325347857,1.62594221,82058.0,82057.0,0.1]
[1731325348486,1.62594221,82058.0,82056.0,0.1]
[1731325348689,0.12594221,82057.0,82056.0,0.221867]
[1731325352593,1.5,82058.0,82057.0,0.221866]
[1731325352830,1.5,82058.0,82057.0,0.24082778]
[1731325353808,1.62594221,82058.0,82057.0,0.221866]
[1731325354420,1.62594221,82058.0,82057.0,0.1]
[1731325355169,1.62594221,82058.0,82057.0,0.221866]
[1731325356003,0.24781321,82054.0,82040.0,0.25369285]
[1731325356211,0.24781321,82054.0,82038.0,0.18438629]
[1731325356212,0.12594221,82054.0,82038.0,0.001378]
[1731325356412,0.12594221,82054.0,82050.0,0.121875]
[1731325356413,0.11762735,82053.0,82050.0,0.121875]
[1731325356614,0.12594221,82052.0,82050.0,0.121875]
[1731325357047,0.12594221,82052.0,82049.0,0.121877]
[1731325357474,1.5,82051.0,82047.0,0.12188]
[1731325357688,1.5,82051.0,82038.0,0.11127371]
[1731325357689,0.1678122,82049.0,82038.0,0.11127371]
[1731325357893,0.17514221,82048.0,82041.0,0.1]
[1731325358107,0.12594221,82048.0,82043.0,0.1]
[1731325358322,0.12594221,82048.0,82044.0,0.243771]
[1731325358527,0.12594221,82048.0,82043.0,0.1]
[1731325358746,0.12594221,82048.0,82043.0,0.221887]
[1731325358950,1.5,82044.0,82043.0,0.221887]
[1731325359105,1.62594221,82044.0,82043.0,0.221887]
[1731325363959,1.5,82044.0,82043.0,0.221887]
[1731325366955,1.62594221,82044.0,82043.0,0.221887]
[1731325367800,1.5,82044.0,82043.0,0.221887]
[1731325368436,1.62594221,82044.0,82043.0,0.221887]
[1731325371508,1.62594221,82044.0,82043.0,0.222731]
[1731325372266,1.62594221,82044.0,82043.0,0.000844]
[1731325373225,1.62594221,82044.0,82043.0,0.122731]
[1731325373431,1.62594221,82044.0,82043.0,0.000844]
[1731325375400,1.62594221,82044.0,82043.0,0.122731]
[1731325375798,1.62594221,82044.0,82043.0,0.000844]
[1731325376940,1.62594221,82044.0,82043.0,0.122731]
[1731325378267,1.62594221,82044.0,82043.0,0.203431]
[1731325378694,1.62594221,82044.0,82043.0,0.122731]
[1731325379668,1.62594221,82044.0,82043.0,0.000844]
[1731325379997,1.62594221,82044.0,82043.0,0.122731]
[1731325380360,1.62594221,82044.0,82043.0,0.000844]
[1731325380958,1.73618729,82044.0,82043.0,0.000844]
[1731325381348,1.73618729,82044.0,82043.0,0.122731]
[1731325382543,1.62594221,82044.0,82043.0,0.122731]
[1731325384158,1.62594221,82044.0,82043.0,0.000844]
[1731325384361,1.62594221,82044.0,82043.0,0.122731]
[1731325387342,1.62594221,82044.0,82043.0,0.000844]
[1731325387543,1.73618729,82044.0,82043.0,0.000844]
[1731325389002,1.73618729,82044.0,82043.0,0.122731]
[1731325389195,1.73618729,82044.0,82043.0,0.000844]
[1731325390114,1.8621295,82044.0,82043.0,0.000844]
[1731325390316,1.73618729,82044.0,82043.0,0.000844]
[1731325395805,1.62594221,82044.0,82043.0,0.122731]
[1731325400807,1.5,82044.0,82043.0,0.122731]
[1731325401021,0.03648515,82052.0,82043.0,0.122731]
[1731325401022,0.21949344,82059.0,82043.0,0.100844]
[1731325401263,0.18300829,82059.0,82058.0,0.121865]
[1731325401679,0.18300829,82059.0,82056.0,0.121867]
[1731325401888,0.12024508,82061.0,82057.0,0.121866]
[1731325402088,0.12024508,82061.0,82045.0,0.243768]
[1731325402089,0.11024508,82058.0,82056.0,0.121867]
[1731325402423,1.5,82057.0,82056.0,0.121867]
[1731325403433,1.5,82057.0,82054.0,0.12187]
[1731325403659,0.11024508,82058.0,82055.0,0.121869]
[1731325403976,0.11024508,82058.0,82051.0,0.24375]
[1731325404191,0.11024508,82058.0,82057.0,0.121866]
[1731325404811,1.61024508,82058.0,82053.0,0.243744]
[1731325405047,0.11024508,82058.0,82054.0,0.243741]
[1731325405253,0.11024508,82058.0,82054.0,0.121869]
[1731325405470,0.11024508,82058.0,82052.0,0.243747]
[1731325405471,0.11124508,82058.0,82055.0,0.121868]
[1731325405669,0.12594221,82057.0,82055.0,0.121868]
[1731325406026,1.5,82056.0,82055.0,0.121868]
[1731325406228,1.62594221,82056.0,82055.0,0.121868]
[1731325407431,1.62594221,82056.0,82052.0,0.243747]
[1731325407575,0.12594221,82055.0,82054.0,0.12187]
[1731325408129,1.62594221,82055.0,82054.0,0.12187]
[1731325409721,1.62594221,82055.0,82045.0,0.243768]
[1731325409722,1.62594221,82055.0,82046.0,0.243764]
[1731325409898,1.62594221,82055.0,82041.0,0.121888]
[1731325409899,0.11024508,82047.0,82041.0,0.121888]
[1731325410256,0.11024508,82047.0,82039.0,0.243785]
[1731325410257,0.12594221,82046.0,82042.0,0.221887]
[1731325410463,1.5,82044.0,82042.0,0.1]
[1731325410691,1.62594221,82044.0,82042.0,0.1]
[1731325410895,1.62594221,82044.0,82031.0,0.243808]
[1731325410896,1.73618729,82044.0,82034.0,0.245176]
[1731325411145,1.62594221,82044.0,82037.0,0.24379]
[1731325411334,1.62594221,82044.0,82037.0,0.121896]
[1731325411335,1.74782721,82044.0,82037.0,0.121896]
[1731325411555,1.62594221,82044.0,82039.0,0.121893]
[1731325411794,1.62594221,82044.0,82035.0,0.01144851]
[1731325411795,1.62594221,82044.0,82037.0,0.121895]
[1731325412017,1.62594221,82044.0,82038.0,0.123272]
[1731325414041,1.62594221,82044.0,82038.0,0.001378]
[1731325414258,1.74782721,82044.0,82038.0,0.001378]
[1731325414486,1.73618729,82044.0,82038.0,0.001378]
[1731325414704,1.62594221,82044.0,82038.0,0.001378]
[1731325415153,1.62594221,82044.0,82038.0,0.123271]
[1731325415416,1.62594221,82044.0,82039.0,0.243785]
[1731325415643,1.62594221,82044.0,82043.0,0.122731]
[1731325416714,1.62594221,82044.0,82043.0,0.000844]
[1731325417122,1.62594221,82044.0,82043.0,0.122731]
[1731325420206,1.62594221,82044.0,82039.0,0.243784]
[1731325420403,0.12594221,82043.0,82039.0,0.243784]
[1731325420761,1.5,82040.0,82039.0,0.365677]
[1731325420967,1.62594221,82040.0,82039.0,0.365677]
[1731325422673,1.73618729,82040.0,82039.0,0.365677]
[1731325423708,1.62594221,82040.0,82039.0,0.365677]
[1731325425519,1.5,82040.0,82039.0,0.365677]
[1731325425724,1.5,82040.0,82039.0,0.443277]
[1731325425924,1.5,82040.0,82039.0,0.593077]
[1731325428801,0.001688,82046.0,82045.0,0.121884]
[1731325429209,0.001688,82046.0,82045.0,0.14082098]
[1731325430045,0.001688,82046.0,82045.0,0.24082098]
[1731325431086,0.001688,82046.0,82045.0,0.221884]
[1731325432953,0.001688,82046.0,82045.0,0.23219065]
[1731325434489,0.00056232,82046.0,82045.0,0.23219065]
[1731325439480,0.00056232,82046.0,82045.0,0.11030665]
[1731325439680,0.00056232,82046.0,82039.0,0.244628]
[1731325439681,0.371891,82040.0,82039.0,0.000844]
[1731325439855,0.60807829,82040.0,82039.0,0.000844]
[1731325440051,2.10807829,82040.0,82039.0,0.000844]
[1731325440424,1.87594221,82040.0,82039.0,0.000844]
[1731325441455,1.87894221,82040.0,82039.0,0.000844]
[1731325441697,1.62594221,82040.0,82039.0,0.122737]
[1731325442222,1.62894221,82040.0,82039.0,0.122737]
[1731325442652,1.62894221,82040.0,82039.0,0.000844]
[1731325442849,1.62594221,82040.0,82039.0,0.000844]
[1731325443189,1.62594221,82040.0,82039.0,0.122737]
[1731325443401,1.5,82040.0,82039.0,0.122737]
[1731325443949,1.5,82040.0,82039.0,0.222737]
[1731325445894,0.197793,82039.0,82038.0,0.001378]
[1731325446114,0.20184221,82039.0,82038.0,0.001378]
[1731325446530,1.70184221,82039.0,82038.0,0.001378]
[1731325448340,1.5,82039.0,82038.0,0.001378]
[1731325448543,1.5,82039.0,82038.0,0.123272]
[1731325449297,0.001688,82043.0,82042.0,0.121888]
[1731325449424,0.001688,82043.0,82042.0,0.221888]
[1731325450456,0.001688,82043.0,82042.0,0.22432538]
[1731325450803,0.001688,82043.0,82042.0,0.22432546]
[1731325451006,0.001688,82043.0,82042.0,0.226888]
[1731325451608,0.001688,82043.0,82042.0,0.24579654]
[1731325452222,0.001688,82043.0,82042.0,0.24823394]
[1731325452780,0.001688,82043.0,82042.0,0.40217615]
[1731325452899,0.001688,82043.0,82042.0,0.52623875]
[1731325453741,0.001688,82043.0,82042.0,0.53155357]
[1731325453947,0.001688,82043.0,82042.0,0.53655357]
[1731325454367,0.001688,82043.0,82042.0,0.15111136]
[1731325455717,0.001688,82043.0,82042.0,0.25111136]
[1731325456066,0.001688,82043.0,82042.0,0.25354882]
[1731325456259,0.001688,82043.0,82042.0,0.25854882]
[1731325456480,0.001688,82043.0,82042.0,0.25611136]
[1731325457111,0.001688,82043.0,82042.0,0.40061248]
[1731325458595,0.001688,82043.0,82042.0,0.25611136]
[1731325459434,0.001688,82043.0,82042.0,0.70649618]
[1731325459636,0.001688,82043.0,82042.0,0.70405872]
[1731325460219,0.001688,82043.0,82042.0,0.70205872]
[1731325461525,0.001688,82043.0,82042.0,0.53405357]
[1731325461975,0.001688,82043.0,82042.0,0.53403312]
[1731325465269,0.001688,82043.0,82042.0,0.51514503]
[1731325465686,0.001688,82043.0,82042.0,0.88080503]
[1731325470467,0.001688,82045.0,82044.0,0.254885]
[1731325470666,0.001688,82045.0,82044.0,0.74648721]
[1731325471305,0.001688,82045.0,82044.0,0.76534774]
[1731325474929,0.001688,82045.0,82044.0,0.81410174]
[1731325476555,0.001688,82045.0,82044.0,0.81411425]
[1731325480261,0.001688,82045.0,82044.0,0.81414428]
[1731325480860,0.001688,82045.0,82044.0,0.92433213]
[1731325483720,0.001688,82045.0,82044.0,0.90542906]
[1731325483967,0.001688,82045.0,82044.0,0.92433379]
[1731325487249,1.5,82058.0,82057.0,0.226866]
[1731325487480,0.0765,82067.0,82066.0,0.121853]
[1731325487697,0.0765,82067.0,82066.0,0.14075773]
[1731325487913,1.5765,82067.0,82066.0,0.14075773]
[1731325489427,1.6229,82067.0,82066.0,0.14075773]
[1731325489680,1.6229,82067.0,82066.0,0.121853]
[1731325489911,1.6229,82067.0,82066.0,0.13182456]
[1731325493256,1.624588,82067.0,82066.0,0.13182456]
[1731325500806,1.73477585,82067.0,82066.0,0.13182456]
[1731325501375,1.86071806,82067.0,82058.0,0.1]
[1731325501614,1.86071806,82067.0,82057.0,0.37578435]
[1731325501615,0.1261,82058.0,82057.0,0.37578435]
[1731325501959,0.1261,82058.0,82057.0,0.49765035]
[1731325501960,1.6261,82058.0,82057.0,0.49765035]
[1731325502333,1.5,82058.0,82057.0,0.49765035]
[1731325502544,1.5,82058.0,82057.0,0.487466]
[1731325502988,1.5,82058.0,82057.0,0.587466]
[1731325504372,1.5,82058.0,82057.0,0.59775352]
[1731325506811,0.001688,82067.0,82066.0,0.121853]
[1731325507009,0.001688,82067.0,82066.0,0.487413]
[1731325507540,0.001688,82067.0,82066.0,0.73060085]
[1731325507715,0.001688,82071.0,82070.0,0.23703485]
[1731325507921,0.001688,82071.0,82070.0,0.61647706]
[1731325508132,0.001688,82071.0,82070.0,0.98201706]
[1731325509155,0.001688,82071.0,82070.0,0.82342921]
[1731325509734,0.001688,82071.0,82070.0,0.75617546]
[1731325509954,0.19207585,82071.0,82070.0,0.49723325]
[1731325510164,0.081888,82071.0,82070.0,0.49723325]
[1731325510382,0.081888,82071.0,82070.0,0.487387]
[1731325510613,1.581888,82071.0,82070.0,0.36554]
[1731325510946,1.581888,82071.0,82070.0,0.487387]
[1731325512225,1.581888,82071.0,82070.0,0.36554]
[1731325512437,2.04668131,82071.0,82070.0,0.36554]
[1731325512856,2.08516967,82071.0,82070.0,0.36554]
[1731325513052,2.26632179,82071.0,82070.0,0.36554]
[1731325513244,0.0491,82056.0,82044.0,0.000844]
[1731325513444,0.12594221,82055.0,82054.0,0.12187]
[1731325513869,1.62594221,82055.0,82054.0,0.12187]
[1731325514286,1.5,82055.0,82054.0,0.12187]
[1731325514843,1.5,82055.0,82054.0,0.22187]
[1731325515803,1.5,82055.0,82054.0,0.23221468]
[1731325516795,1.5,82055.0,82054.0,0.22187]
[1731325517185,0.121871,82054.0,82049.0,0.00990994]
[1731325517426,1.75124221,82055.0,82049.0,0.00990994]
[1731325517427,0.1679061,82052.0,82049.0,0.00990994]
[1731325517713,0.1679061,82052.0,82046.0,0.122726]
[1731325517714,0.29384831,82052.0,82046.0,0.000844]
[1731325517881,0.12594221,82052.0,82048.0,0.121879]
[1731325518064,0.12594221,82051.0,82046.0,0.000844]
[1731325518311,0.12594221,82051.0,82046.0,0.122726]
[1731325518479,0.12594221,82051.0,82046.0,0.000844]
[1731325518686,0.12594221,82051.0,82046.0,0.122726]
[1731325518889,0.12594221,82051.0,82046.0,0.000844]
[1731325519187,0.22745683,82051.0,82046.0,0.000844]
[1731325519338,0.0759,82050.0,82046.0,0.000844]
[1731325519539,0.12594221,82049.0,82046.0,0.000844]
[1731325519756,1.5,82048.0,82046.0,0.000844]
[1731325520081,0.12594221,82047.0,82046.0,0.122726]
[1731325520236,0.12594221,82047.0,82046.0,0.000844]
[1731325520667,1.62594221,82047.0,82046.0,0.000844]
[1731325521461,1.75188442,82047.0,82046.0,0.000844]
[1731325521734,1.62594221,82047.0,82046.0,0.000844]
[1731325521924,1.67514221,82047.0,82046.0,0.000844]
[1731325525465,1.79702321,82047.0,82046.0,0.000844]
[1731325525885,1.67514221,82047.0,82046.0,0.000844]
[1731325526802,1.67514221,82047.0,82046.0,0.122726]
[1731325527017,1.67514221,82047.0,82046.0,0.000844]
[1731325527208,1.79702321,82047.0,82046.0,0.000844]
[1731325527410,1.67514221,82047.0,82046.0,0.000844]
[1731325528091,1.80108442,82047.0,82046.0,0.000844]
[1731325528469,1.67514221,82047.0,82046.0,0.000844]
[1731325529078,1.62594221,82047.0,82046.0,0.000844]
[1731325531561,1.62594221,82047.0,82046.0,0.122726]
[1731325531948,1.62594221,82047.0,82046.0,0.13279749]
[1731325532359,1.5,82047.0,82046.0,0.13279749]
[1731325532789,1.5,82047.0,82046.0,0.15579749]
[1731325533054,1.5,82047.0,82046.0,0.25579749]
[1731325533257,1.5,82047.0,82046.0,0.33759749]
[1731325534533,1.5,82047.0,82046.0,0.25579749]
[1731325536421,1.5,82047.0,82046.0,0.26079749]
[1731325537585,1.5,82047.0,82046.0,0.25579749]
[1731325537782,1.5,82047.0,82046.0,0.26079749]
[1731325538811,1.5,82047.0,82046.0,0.25579749]
[1731325546363,1.5,82047.0,82046.0,0.15852396]
[1731325546563,1.5,82047.0,82046.0,0.15495349]
[1731325546810,1.5,82047.0,82046.0,0.25495349]
[1731325547883,1.5,82047.0,82046.0,0.23195349]
[1731325548483,1.4999,82047.0,82046.0,0.23195349]
[1731325549307,1.4999,82047.0,82044.0,0.000844]
[1731325549308,1.4999,82047.0,82045.0,0.243768]
[1731325549712,1.4999,82047.0,82046.0,0.121882]
[1731325552025,0.005,82062.0,82061.0,0.12186]
[1731325552026,0.0479,82062.0,82061.0,0.12186]
[1731325552236,0.18300829,82063.0,82047.0,0.0798]
[1731325552237,0.18300829,82063.0,82062.0,0.121859]
[1731325552639,1.5,82063.0,82062.0,0.121859]
[1731325553430,1.5,82063.0,82062.0,0.144859]
[1731325553612,1.5,82063.0,82062.0,0.225159]
[1731325553956,0.001688,82070.0,82062.0,0.225159]
[1731325553957,0.001688,82070.0,82066.0,0.226853]
[1731325554163,0.001688,82070.0,82066.0,0.5461379]
[1731325554361,0.001688,82070.0,82066.0,0.54870131]
[1731325555152,0.001688,82067.0,82066.0,0.38079521]
[1731325555627,0.001688,82067.0,82066.0,0.249853]
[1731325556570,0.001688,82067.0,82066.0,0.254853]
[1731325558564,0.001688,82067.0,82066.0,0.149853]
[1731325559170,0.001688,82067.0,82066.0,0.144853]
[1731325559837,0.001688,82067.0,82066.0,0.121853]
[1731325561188,0.001688,82067.0,82063.0,0.243712]
[1731325561389,0.001688,82067.0,82066.0,0.121853]
[1731325561754,1.501688,82067.0,82066.0,0.121853]
[1731325561977,1.501688,82067.0,82063.0,0.243712]
[1731325561978,1.501688,82067.0,82065.0,0.121854]
[1731325562182,1.501688,82067.0,82066.0,0.121853]
[1731325562563,1.501688,82067.0,82062.0,0.00994183]
[1731325562793,1.501688,82067.0,82059.0,0.1]
[1731325563018,1.501688,82067.0,82066.0,0.121853]
[1731325564300,0.001688,82067.0,82066.0,0.37579521]
[1731325567575,0.001688,82067.0,82066.0,0.36579521]
[1731325567781,0.001688,82067.0,82066.0,0.73135521]
[1731325577727,0.001688,82070.0,82069.0,0.4177541]
[1731325577952,0.001688,82070.0,82069.0,0.91424631]
[1731325579045,0.001688,82071.0,82070.0,0.131847]
[1731325579250,0.001688,82071.0,82070.0,0.74632921]
[1731325579485,0.001688,82071.0,82070.0,0.76504502]
[1731325581599,1.5,82086.0,82085.0,0.226824]
[1731325581882,0.18300829,82096.0,82086.0,0.149823]
[1731325582025,0.18300829,82096.0,82086.0,0.2685622]
[1731325582226,1.5,82095.0,82088.0,0.24982]
[1731325582428,1.5,82095.0,82088.0,0.6340192]
[1731325582635,0.18300829,82096.0,82089.0,0.123]
[1731325582828,0.18300829,82096.0,82095.0,0.14481]
[1731325583072,0.18300829,82096.0,82095.0,0.1635492]
[1731325583283,0.0798,82103.0,82099.0,0.121804]
[1731325583488,0.0798,82103.0,82099.0,0.1405432]
[1731325583696,1.5452,82100.0,82099.0,0.1405432]
[1731325585001,1.5,82100.0,82099.0,0.1405432]
[1731325585208,1.5,82100.0,82099.0,0.50595268]
[1731325585642,1.5,82100.0,82099.0,0.60595268]
[1731325588999,1.5,82100.0,82099.0,0.587214]
[1731325589220,1.5,82100.0,82099.0,0.51617097]
[1731325589668,1.500844,82100.0,82099.0,0.49744794]
[1731325597058,1.500844,82100.0,82099.0,0.52044794]
[1731325600062,0.000844,82100.0,82099.0,0.52044794]
[1731325600516,1.500844,82100.0,82099.0,0.52044794]
[1731325601186,0.000844,82100.0,82099.0,0.62544794]
[1731325601416,0.000844,82100.0,82099.0,1.00079625]
[1731325603761,0.000844,82100.0,82099.0,0.97579625]
[1731325604879,0.000844,82100.0,82099.0,0.80789015]
[1731325605095,0.000844,82100.0,82099.0,0.80289015]
[1731325605865,0.000844,82100.0,82099.0,0.80789015]
[1731325606050,0.000844,82100.0,82099.0,0.85661215]
[1731325611545,1.500001,82117.0,82116.0,0.249778]
[1731325611750,1e-06,82117.0,82116.0,0.249778]
[1731325612124,1e-06,82117.0,82116.0,0.615118]
[1731325614707,1e-06,82117.0,82116.0,0.610118]
[1731325614907,1e-06,82117.0,82116.0,0.587118]
[1731325617417,1e-06,82117.0,82116.0,0.59729343]
[1731325621739,1e-06,82117.0,82116.0,0.61594242]
[1731325626698,1e-06,82117.0,82116.0,0.59729343]
[1731325628484,1e-06,82117.0,82116.0,0.59629343]
[1731325631951,0.045101,82117.0,82116.0,0.47551543]
[1731325632161,0.2130071,82117.0,82116.0,0.36534]
[1731325632381,1.9148841,82117.0,82116.0,0.36534]
[1731325632867,1.85705479,82117.0,82116.0,0.36534]
[1731325633076,1.73527779,82117.0,82116.0,0.36534]
[1731325633730,1.625201,82117.0,82116.0,0.487118]
[1731325634227,1.625201,82117.0,82116.0,0.36534]
[1731325639083,1.87292021,82117.0,82116.0,0.36534]
[1731325639305,1.92755591,82117.0,82116.0,0.36534]
[1731325640162,1.92955591,82117.0,82116.0,0.36534]
[1731325640971,1.87292021,82117.0,82116.0,0.36534]
[1731325641312,1.87292021,82117.0,82116.0,0.26534]
[1731325641313,2.01742099,82117.0,82116.0,0.26534]
[1731325641548,2.18513816,82117.0,82116.0,0.26534]
[1731325641730,2.18713816,82117.0,82116.0,0.26534]
[1731325642231,2.19113816,82117.0,82116.0,0.26534]
[1731325642449,2.18704444,82117.0,82116.0,0.26534]
[1731325642614,2.19204444,82117.0,82116.0,0.26534]
[1731325642819,2.19604444,82117.0,82116.0,0.26534]
[1731325643394,2.26889325,82117.0,82116.0,0.26534]
[1731325643960,2.18904444,82117.0,82116.0,0.26534]
[1731325644160,2.05454366,82117.0,82116.0,0.26534]
[1731325644311,2.10917373,82117.0,82116.0,0.26534]
[1731325644716,2.05654366,82117.0,82116.0,0.26534]
[1731325646156,2.05454366,82117.0,82116.0,0.26534]
[1731325646339,2.18898784,82117.0,82116.0,0.26534]
[1731325646572,2.05454366,82117.0,82116.0,0.26534]
[1731325647460,2.10916396,82117.0,82116.0,0.26534]
[1731325647657,2.11116396,82117.0,82116.0,0.26534]
[1731325647925,2.05454366,82117.0,82116.0,0.26534]
[1731325648143,2.10916402,82117.0,82116.0,0.26534]
[1731325648561,2.05454366,82117.0,82116.0,0.26534]
[1731325649408,2.05454366,82117.0,82116.0,0.267026]
[1731325649834,2.05538666,82117.0,82116.0,0.267026]
[1731325650684,2.05738666,82117.0,82116.0,0.267026]
[1731325651539,2.05538666,82117.0,82116.0,0.267026]